[Event "Titled Tuesday Blitz April 11 Early 2023"]
[White "benny_aizenberg"]
[Black "Pniaczek, Marek"]
[BlackFideId "21800421"]
[WhiteElo "2624"]
[BlackElo "2138"]
[Result "0-1"]
[Round "03"]
[TimeControl "180+2"]
[Date "2023.04.11"]
[WhiteClock "0:00:06"]
[BlackClock "0:00:14"]

1. e4 {[%clk 0:03:00]}  c5 {[%clk 0:02:57]} 2. c3 {[%clk 0:03:00]}  Nf6 {[%clk 0:02:54]} 3. e5 {[%clk 0:02:59]}  Nd5 {[%clk 0:02:54]} 4. d4 {[%clk 0:02:59]}  cxd4 {[%clk 0:02:51]} 5. Nf3 {[%clk 0:02:58]}  Nc6 {[%clk 0:02:46]} 6. cxd4 {[%clk 0:02:56]}  d6 {[%clk 0:02:45]} 7. Bc4 {[%clk 0:02:56]}  Nb6 {[%clk 0:02:41]} 8. Bb3 {[%clk 0:02:54]}  dxe5 {[%clk 0:02:36]} 9. d5 {[%clk 0:02:54]}  Na5 {[%clk 0:02:24]} 10. Nc3 {[%clk 0:02:53]}  f6 {[%clk 0:02:08]} 11. O-O {[%clk 0:02:40]}  e6 {[%clk 0:01:56]} 12. Nxe5 {[%clk 0:02:18]}  fxe5 {[%clk 0:01:45]} 13. Qh5+ {[%clk 0:02:17]}  g6 {[%clk 0:01:45]} 14. Qxe5 {[%clk 0:02:16]}  Rg8 {[%clk 0:01:46]} 15. dxe6 {[%clk 0:01:56]}  Nxb3 {[%clk 0:01:43]} 16. axb3 {[%clk 0:01:53]}  Qd6 {[%clk 0:01:33]} 17. Qb5+ {[%clk 0:01:52]}  Qc6 {[%clk 0:01:29]} 18. Be3 {[%clk 0:01:43]}  Qxb5 {[%clk 0:00:59]} 19. Nxb5 {[%clk 0:01:43]}  Nd5 {[%clk 0:00:59]} 20. Bxa7 {[%clk 0:01:36]}  Bxe6 {[%clk 0:00:55]} 21. Rfe1 {[%clk 0:01:32]}  Kf7 {[%clk 0:00:53]} 22. Rad1 {[%clk 0:01:28]}  Be7 {[%clk 0:00:40]} 23. Bd4 {[%clk 0:01:22]}  Rgd8 {[%clk 0:00:34]} 24. Rd3 {[%clk 0:01:18]}  Bf6 {[%clk 0:00:28]} 25. Rf3 {[%clk 0:01:05]}  Kg7 {[%clk 0:00:25]} 26. Bxf6+ {[%clk 0:01:02]}  Nxf6 {[%clk 0:00:25]} 27. Nc7 {[%clk 0:01:02]}  Bd5 {[%clk 0:00:15]} 28. Rf4 {[%clk 0:00:53]}  Rac8 {[%clk 0:00:13]} 29. Re7+ {[%clk 0:00:52]}  Kf8 {[%clk 0:00:13]} 30. Rxh7 {[%clk 0:00:48]}  Kg8 {[%clk 0:00:14]} 31. Re7 {[%clk 0:00:47]}  Re8 {[%clk 0:00:11]} 32. Rxe8+ {[%clk 0:00:12]}  Nxe8 {[%clk 0:00:10]} 33. h4 {[%clk 0:00:11]}  Nxc7 {[%clk 0:00:09]} 34. g4 {[%clk 0:00:09]}  Bxb3 {[%clk 0:00:09]} 35. Rb4 {[%clk 0:00:08]}  Bd5 {[%clk 0:00:09]} 36. Rb6 {[%clk 0:00:09]}  Bc6 {[%clk 0:00:09]} 37. f4 {[%clk 0:00:08]}  Nd5 {[%clk 0:00:10]} 38. Rb3 {[%clk 0:00:08]}  Nxf4 {[%clk 0:00:10]} 39. Kf2 {[%clk 0:00:08]}  Rf8 {[%clk 0:00:09]} 40. Kg3 {[%clk 0:00:09]}  Ne2+ {[%clk 0:00:09]} 41. Kh2 {[%clk 0:00:07]}  Rf2+ {[%clk 0:00:09]} 42. Kh3 {[%clk 0:00:08]}  Rf3+ {[%clk 0:00:09]} 43. Rxf3 {[%clk 0:00:07]}  Bxf3 {[%clk 0:00:10]} 44. h5 {[%clk 0:00:06]}  gxh5 {[%clk 0:00:10]} 45. gxh5 {[%clk 0:00:07]}  Kh7 {[%clk 0:00:11]} 46. Kh4 {[%clk 0:00:06]}  Kh6 {[%clk 0:00:11]} 47. Kh3 {[%clk 0:00:06]}  Kxh5 {[%clk 0:00:11]} 48. b4 {[%clk 0:00:05]}  Kg5 {[%clk 0:00:11]} 49. Kh2 {[%clk 0:00:05]}  Kf5 {[%clk 0:00:12]} 50. Kh3 {[%clk 0:00:04]}  Ke5 {[%clk 0:00:13]} 51. Kh4 {[%clk 0:00:05]}  Kd5 {[%clk 0:00:14]} 52. Kg5 {[%clk 0:00:06]}  Kc4 {[%clk 0:00:14]} 0-1


[Site "https://www.chess.com"]

[Event "Titled Tuesday Blitz April 11 Early 2023"]
[White "Vlassov, Nikolai"]
[Black "Leyva Rivera, Yunier"]
[WhiteFideId "4103360"]
[BlackFideId "3505065"]
[WhiteElo "2324"]
[BlackElo "2430"]
[Result "0-1"]
[Round "03"]
[TimeControl "180+2"]
[Date "2023.04.11"]
[WhiteClock "0:00:02"]
[BlackClock "0:00:11"]

1. e4 {[%clk 0:03:00]}  c5 {[%clk 0:02:59]} 2. c3 {[%clk 0:03:00]}  d5 {[%clk 0:02:58]} 3. exd5 {[%clk 0:03:00]}  Qxd5 {[%clk 0:02:59]} 4. d4 {[%clk 0:03:01]}  Nf6 {[%clk 0:02:59]} 5. Nf3 {[%clk 0:03:01]}  e6 {[%clk 0:02:59]} 6. a3 {[%clk 0:03:01]}  Nc6 {[%clk 0:02:54]} 7. Be3 {[%clk 0:03:00]}  cxd4 {[%clk 0:02:54]} 8. cxd4 {[%clk 0:03:01]}  Be7 {[%clk 0:02:51]} 9. Nc3 {[%clk 0:03:02]}  Qd6 {[%clk 0:02:51]} 10. Qc2 {[%clk 0:03:02]}  O-O {[%clk 0:02:42]} 11. Bd3 {[%clk 0:03:03]}  Rd8 {[%clk 0:02:31]} 12. O-O {[%clk 0:02:57]}  Bd7 {[%clk 0:02:22]} 13. Qd2 {[%clk 0:02:57]}  Nd5 {[%clk 0:01:56]} 14. Rad1 {[%clk 0:02:49]}  Rac8 {[%clk 0:01:50]} 15. Ne4 {[%clk 0:02:48]}  Qb8 {[%clk 0:01:48]} 16. Nc5 {[%clk 0:02:44]}  Be8 {[%clk 0:01:44]} 17. Bb1 {[%clk 0:02:37]}  Nxe3 {[%clk 0:01:30]} 18. Qxe3 {[%clk 0:02:34]}  Nxd4 {[%clk 0:01:29]} 19. Nxd4 {[%clk 0:02:07]}  Bxc5 {[%clk 0:01:18]} 20. Qe4 {[%clk 0:01:51]}  g6 {[%clk 0:01:04]} 21. Ba2 {[%clk 0:01:46]}  Bxd4 {[%clk 0:00:34]} 22. Rxd4 {[%clk 0:01:45]}  Rxd4 {[%clk 0:00:35]} 23. Qxd4 {[%clk 0:01:46]}  Rd8 {[%clk 0:00:30]} 24. Qf6 {[%clk 0:01:41]}  Bc6 {[%clk 0:00:31]} 25. h4 {[%clk 0:01:39]}  h5 {[%clk 0:00:29]} 26. Bxe6 {[%clk 0:01:37]}  fxe6 {[%clk 0:00:28]} 27. Qxg6+ {[%clk 0:01:37]}  Kf8 {[%clk 0:00:27]} 28. Qf6+ {[%clk 0:01:37]}  Kg8 {[%clk 0:00:28]} 29. Qxe6+ {[%clk 0:01:36]}  Kf8 {[%clk 0:00:28]} 30. Qf6+ {[%clk 0:01:35]}  Kg8 {[%clk 0:00:28]} 31. Qg6+ {[%clk 0:01:35]}  Kf8 {[%clk 0:00:29]} 32. Qh6+ {[%clk 0:01:29]}  Kg8 {[%clk 0:00:27]} 33. Re1 {[%clk 0:01:20]}  Qc7 {[%clk 0:00:20]} 34. Qg5+ {[%clk 0:01:16]}  Kf8 {[%clk 0:00:21]} 35. Qxh5 {[%clk 0:01:04]}  Qg7 {[%clk 0:00:18]} 36. g3 {[%clk 0:00:54]}  Rd5 {[%clk 0:00:14]} 37. Qf3+ {[%clk 0:00:44]}  Qf7 {[%clk 0:00:14]} 38. Qc3 {[%clk 0:00:42]}  Kg8 {[%clk 0:00:14]} 39. Qe3 {[%clk 0:00:26]}  Rf5 {[%clk 0:00:14]} 40. Qd4 {[%clk 0:00:11]}  Qd5 {[%clk 0:00:12]} 41. Qxd5+ {[%clk 0:00:11]}  Rxd5 {[%clk 0:00:13]} 42. Kh2 {[%clk 0:00:10]}  Rd2 {[%clk 0:00:13]} 43. Kh3 {[%clk 0:00:10]}  Rxf2 {[%clk 0:00:12]} 44. b4 {[%clk 0:00:10]}  Rf3 {[%clk 0:00:12]} 45. Kg4 {[%clk 0:00:08]}  Rxa3 {[%clk 0:00:12]} 46. Re7 {[%clk 0:00:08]}  Rb3 {[%clk 0:00:11]} 47. Kg5 {[%clk 0:00:08]}  Rxb4 {[%clk 0:00:11]} 48. h5 {[%clk 0:00:07]}  Re4 {[%clk 0:00:11]} 49. Rc7 {[%clk 0:00:06]}  Re6 {[%clk 0:00:10]} 50. g4 {[%clk 0:00:06]}  a5 {[%clk 0:00:11]} 51. Kf5 {[%clk 0:00:04]}  Rd6 {[%clk 0:00:10]} 52. g5 {[%clk 0:00:04]}  a4 {[%clk 0:00:10]} 53. h6 {[%clk 0:00:04]}  Bd7+ {[%clk 0:00:11]} 54. Ke5 {[%clk 0:00:03]}  Re6+ {[%clk 0:00:10]} 55. Kd5 {[%clk 0:00:02]}  Rg6 {[%clk 0:00:09]} 56. Rxd7 {[%clk 0:00:02]}  Rxg5+ {[%clk 0:00:10]} 57. Kc4 {[%clk 0:00:02]}  b5+ {[%clk 0:00:10]} 58. Kb4 {[%clk 0:00:02]}  Rh5 {[%clk 0:00:11]} 0-1


[Site "https://www.chess.com"]

[Event "Titled Tuesday Blitz April 11 Early 2023"]
[White "Kucuksari, Kaan"]
[Black "Kopczynski, Michal"]
[WhiteFideId "6380166"]
[BlackFideId "1124200"]
[WhiteElo "2364"]
[BlackElo "2212"]
[Result "1-0"]
[Round "03"]
[TimeControl "180+2"]
[Date "2023.04.11"]
[WhiteClock "0:00:05"]
[BlackClock "0:00:03"]

1. e4 {[%clk 0:03:00]}  c5 {[%clk 0:02:57]} 2. Nf3 {[%clk 0:03:01]}  d6 {[%clk 0:02:58]} 3. d4 {[%clk 0:03:02]}  cxd4 {[%clk 0:02:58]} 4. Nxd4 {[%clk 0:03:02]}  Nf6 {[%clk 0:02:59]} 5. Nc3 {[%clk 0:03:02]}  g6 {[%clk 0:03:00]} 6. f3 {[%clk 0:03:01]}  Bg7 {[%clk 0:03:00]} 7. Be3 {[%clk 0:03:01]}  O-O {[%clk 0:03:01]} 8. Qd2 {[%clk 0:03:01]}  Nc6 {[%clk 0:03:01]} 9. O-O-O {[%clk 0:03:01]}  d5 {[%clk 0:03:02]} 10. Nxc6 {[%clk 0:02:50]}  bxc6 {[%clk 0:03:03]} 11. Bc4 {[%clk 0:02:39]}  e6 {[%clk 0:02:32]} 12. Bb3 {[%clk 0:02:39]}  a5 {[%clk 0:02:22]} 13. h4 {[%clk 0:02:35]}  a4 {[%clk 0:02:21]} 14. Bxa4 {[%clk 0:02:34]}  Qc7 {[%clk 0:02:11]} 15. Bb3 {[%clk 0:02:29]}  dxe4 {[%clk 0:01:58]} 16. fxe4 {[%clk 0:02:28]}  h5 {[%clk 0:01:52]} 17. Rhf1 {[%clk 0:02:20]}  Ba6 {[%clk 0:01:46]} 18. Rf2 {[%clk 0:02:16]}  Ng4 {[%clk 0:01:45]} 19. Rf3 {[%clk 0:02:12]}  Rad8 {[%clk 0:01:32]} 20. Qe1 {[%clk 0:02:12]}  Rxd1+ {[%clk 0:01:31]} 21. Nxd1 {[%clk 0:02:12]}  Qh2 {[%clk 0:01:12]} 22. Qg3 {[%clk 0:01:30]}  Qh1 {[%clk 0:01:04]} 23. Qh3 {[%clk 0:01:30]}  Qe1 {[%clk 0:00:56]} 24. Qg3 {[%clk 0:01:19]}  Qh1 {[%clk 0:00:38]} 25. Qh3 {[%clk 0:00:57]}  Qe1 {[%clk 0:00:34]} 26. Bd2 {[%clk 0:00:46]}  Qxe4 {[%clk 0:00:30]} 27. Rf4 {[%clk 0:00:39]}  Qe5 {[%clk 0:00:28]} 28. Qf3 {[%clk 0:00:37]}  Be2 {[%clk 0:00:26]} 29. Qc3 {[%clk 0:00:20]}  Bxd1 {[%clk 0:00:23]} 30. Kxd1 {[%clk 0:00:19]}  Qxf4 {[%clk 0:00:19]} 31. Qxg7+ {[%clk 0:00:16]}  Kxg7 {[%clk 0:00:20]} 32. Bxf4 {[%clk 0:00:16]}  Rd8+ {[%clk 0:00:18]} 33. Ke2 {[%clk 0:00:16]}  e5 {[%clk 0:00:19]} 34. Bd2 {[%clk 0:00:14]}  f5 {[%clk 0:00:18]} 35. a4 {[%clk 0:00:14]}  e4 {[%clk 0:00:17]} 36. Bg5 {[%clk 0:00:13]}  Rb8 {[%clk 0:00:16]} 37. a5 {[%clk 0:00:11]}  Ra8 {[%clk 0:00:14]} 38. Bd2 {[%clk 0:00:11]}  Kf6 {[%clk 0:00:14]} 39. Bc4 {[%clk 0:00:11]}  Ne5 {[%clk 0:00:13]} 40. Bc3 {[%clk 0:00:11]}  f4 {[%clk 0:00:13]} 41. a6 {[%clk 0:00:10]}  Kf5 {[%clk 0:00:13]} 42. Bxe5 {[%clk 0:00:04]}  Kxe5 {[%clk 0:00:13]} 43. c3 {[%clk 0:00:05]}  Kf5 {[%clk 0:00:11]} 44. Kf2 {[%clk 0:00:05]}  g5 {[%clk 0:00:10]} 45. hxg5 {[%clk 0:00:04]}  Kxg5 {[%clk 0:00:11]} 46. b4 {[%clk 0:00:05]}  e3+ {[%clk 0:00:06]} 47. Kf3 {[%clk 0:00:05]}  Kf5 {[%clk 0:00:06]} 48. Bd3+ {[%clk 0:00:04]}  Ke5 {[%clk 0:00:06]} 49. Be2 {[%clk 0:00:04]}  h4 {[%clk 0:00:05]} 50. Kg4 {[%clk 0:00:04]}  Ke4 {[%clk 0:00:03]} 51. c4 {[%clk 0:00:03]}  Ke5 {[%clk 0:00:02]} 52. b5 {[%clk 0:00:03]}  cxb5 {[%clk 0:00:02]} 53. cxb5 {[%clk 0:00:04]}  Kd6 {[%clk 0:00:02]} 54. b6 {[%clk 0:00:04]}  Kc6 {[%clk 0:00:02]} 55. b7 {[%clk 0:00:04]}  Rg8+ {[%clk 0:00:01]} 56. Kxf4 {[%clk 0:00:04]}  Kb6 {[%clk 0:00:01]} 57. Kxe3 {[%clk 0:00:03]}  Ka7 {[%clk 0:00:01]} 58. Kf2 {[%clk 0:00:03]}  Rf8+ {[%clk 0:00:01]} 59. Kg1 {[%clk 0:00:03]}  Re8 {[%clk 0:00:02]} 60. Bf1 {[%clk 0:00:03]}  Rf8 {[%clk 0:00:02]} 61. Bd3 {[%clk 0:00:03]}  Rd8 {[%clk 0:00:02]} 62. Be2 {[%clk 0:00:03]}  Re8 {[%clk 0:00:03]} 63. Bc4 {[%clk 0:00:04]}  Rd8 {[%clk 0:00:03]} 64. Kh2 {[%clk 0:00:04]}  Rd4 {[%clk 0:00:03]} 65. Bf1 {[%clk 0:00:04]}  Rf4 {[%clk 0:00:03]} 66. Be2 {[%clk 0:00:04]}  Re4 {[%clk 0:00:03]} 67. Bf3 {[%clk 0:00:05]}  Rd4 {[%clk 0:00:03]} 68. Kh3 {[%clk 0:00:05]}  Rb4 {[%clk 0:00:02]} 69. Be2 {[%clk 0:00:04]}  Rb2 {[%clk 0:00:03]} 70. Bc4 {[%clk 0:00:04]}  Rb4 {[%clk 0:00:03]} 71. Bf1 {[%clk 0:00:04]}  Rb3+ {[%clk 0:00:03]} 72. Kxh4 {[%clk 0:00:04]}  Rb1 {[%clk 0:00:04]} 73. Be2 {[%clk 0:00:04]}  Rb2 {[%clk 0:00:04]} 74. Bf3 {[%clk 0:00:04]}  Kxa6 {[%clk 0:00:03]} 75. g4 {[%clk 0:00:05]}  Rb4 {[%clk 0:00:03]} 76. Kh5 {[%clk 0:00:05]}  Ka7 {[%clk 0:00:03]} 77. g5 {[%clk 0:00:05]}  Rb3 {[%clk 0:00:03]} 78. Be4 {[%clk 0:00:05]}  Kb8 {[%clk 0:00:02]} 79. g6 {[%clk 0:00:04]}  Rh3+ {[%clk 0:00:03]} 80. Kg4 {[%clk 0:00:04]}  Rh8 {[%clk 0:00:02]} 81. Kg5 {[%clk 0:00:04]}  Re8 {[%clk 0:00:02]} 82. Bf3 {[%clk 0:00:04]}  Rf8 {[%clk 0:00:02]} 83. g7 {[%clk 0:00:04]}  Rxf3 {[%clk 0:00:02]} 84. g8=Q+ {[%clk 0:00:04]}  Kxb7 {[%clk 0:00:03]} 85. Qd5+ {[%clk 0:00:05]} 1-0


[Site "https://www.chess.com"]

[Event "Titled Tuesday Blitz April 11 Early 2023"]
[White "Ambartsumova, Karina"]
[Black "Gonzalez, Francisco Silva"]
[WhiteFideId "4166299"]
[BlackFideId "1512285"]
[WhiteElo "2240"]
[BlackElo "2074"]
[Result "1-0"]
[Round "03"]
[TimeControl "180+2"]
[Date "2023.04.11"]
[WhiteClock "0:00:10"]
[BlackClock "0:00:57"]

1. e4 {[%clk 0:03:00]}  e5 {[%clk 0:02:55]} 2. Nf3 {[%clk 0:03:00]}  Nc6 {[%clk 0:02:49]} 3. Bb5 {[%clk 0:03:00]}  a6 {[%clk 0:02:49]} 4. Ba4 {[%clk 0:03:00]}  Nf6 {[%clk 0:02:47]} 5. O-O {[%clk 0:03:00]}  b5 {[%clk 0:02:47]} 6. Bb3 {[%clk 0:02:59]}  Bc5 {[%clk 0:02:47]} 7. a4 {[%clk 0:02:52]}  Bb7 {[%clk 0:02:46]} 8. c3 {[%clk 0:02:38]}  d6 {[%clk 0:02:44]} 9. d4 {[%clk 0:02:34]}  Bb6 {[%clk 0:02:44]} 10. Qd3 {[%clk 0:02:28]}  O-O {[%clk 0:02:43]} 11. Na3 {[%clk 0:02:22]}  exd4 {[%clk 0:02:39]} 12. cxd4 {[%clk 0:02:11]}  Nb4 {[%clk 0:02:36]} 13. Qc3 {[%clk 0:01:58]}  c5 {[%clk 0:02:36]} 14. dxc5 {[%clk 0:01:46]}  Bxc5 {[%clk 0:02:32]} 15. Bg5 {[%clk 0:01:25]}  Bxe4 {[%clk 0:02:30]} 16. axb5 {[%clk 0:01:14]}  Rc8 {[%clk 0:02:28]} 17. Qd2 {[%clk 0:00:56]}  Bxf3 {[%clk 0:02:26]} 18. gxf3 {[%clk 0:00:57]}  h5 {[%clk 0:02:18]} 19. bxa6 {[%clk 0:00:52]}  Nxa6 {[%clk 0:02:17]} 20. Nc4 {[%clk 0:00:47]}  Nb4 {[%clk 0:02:14]} 21. Rad1 {[%clk 0:00:43]}  d5 {[%clk 0:02:13]} 22. Ne5 {[%clk 0:00:33]}  Qd6 {[%clk 0:02:11]} 23. Nd3 {[%clk 0:00:30]}  Nxd3 {[%clk 0:02:09]} 24. Qxd3 {[%clk 0:00:31]}  Rcd8 {[%clk 0:02:00]} 25. Bc2 {[%clk 0:00:30]}  g6 {[%clk 0:01:55]} 26. Kh1 {[%clk 0:00:30]}  Rde8 {[%clk 0:01:49]} 27. Bh6 {[%clk 0:00:25]}  Qe5 {[%clk 0:01:44]} 28. f4 {[%clk 0:00:24]}  Qxb2 {[%clk 0:01:42]} 29. Rg1 {[%clk 0:00:22]}  Ne4 {[%clk 0:01:42]} 30. Rdf1 {[%clk 0:00:15]}  Bxf2 {[%clk 0:01:31]} 31. f5 {[%clk 0:00:13]}  Bxg1 {[%clk 0:01:30]} 32. fxg6 {[%clk 0:00:12]}  Nf2+ {[%clk 0:01:28]} 33. Rxf2 {[%clk 0:00:12]}  f5 {[%clk 0:01:09]} 34. Qxd5+ {[%clk 0:00:11]}  Kh8 {[%clk 0:01:06]} 35. g7+ {[%clk 0:00:11]}  Kh7 {[%clk 0:01:06]} 36. Bxf5+ {[%clk 0:00:10]}  Rxf5 {[%clk 0:01:02]} 37. Qxf5+ {[%clk 0:00:11]}  Kxh6 {[%clk 0:01:02]} 38. Rxb2 {[%clk 0:00:11]}  Bd4 {[%clk 0:00:59]} 39. Rd2 {[%clk 0:00:10]}  Bxg7 {[%clk 0:00:57]} 40. Rd6+ {[%clk 0:00:10]} 1-0


[Site "https://www.chess.com"]

[Event "Titled Tuesday Blitz April 11 Early 2023"]
[White "Zhukova, Natalia"]
[Black "Wadsworth, Matthew J"]
[WhiteFideId "14101513"]
[BlackFideId "415804"]
[WhiteElo "2297"]
[BlackElo "2330"]
[Result "0-1"]
[Round "03"]
[TimeControl "180+2"]
[Date "2023.04.11"]
[WhiteClock "0:00:06"]
[BlackClock "0:00:06"]

1. c4 {[%clk 0:03:00]}  c6 {[%clk 0:02:55]} 2. d4 {[%clk 0:03:00]}  d5 {[%clk 0:02:55]} 3. Nc3 {[%clk 0:03:00]}  Nf6 {[%clk 0:02:55]} 4. Nf3 {[%clk 0:03:01]}  dxc4 {[%clk 0:02:54]} 5. a4 {[%clk 0:03:00]}  Bf5 {[%clk 0:02:53]} 6. Ne5 {[%clk 0:03:00]}  Nbd7 {[%clk 0:02:53]} 7. Nxc4 {[%clk 0:03:01]}  Qc7 {[%clk 0:02:53]} 8. g3 {[%clk 0:02:59]}  e5 {[%clk 0:02:53]} 9. dxe5 {[%clk 0:02:55]}  Nxe5 {[%clk 0:02:53]} 10. Bf4 {[%clk 0:02:55]}  Nfd7 {[%clk 0:02:53]} 11. Ne3 {[%clk 0:02:54]}  Be6 {[%clk 0:02:43]} 12. Bg2 {[%clk 0:02:50]}  f6 {[%clk 0:02:33]} 13. h4 {[%clk 0:02:47]}  O-O-O {[%clk 0:02:21]} 14. Qc2 {[%clk 0:02:43]}  a5 {[%clk 0:02:10]} 15. Rc1 {[%clk 0:02:35]}  Nc5 {[%clk 0:01:53]} 16. O-O {[%clk 0:02:18]}  Bb3 {[%clk 0:01:34]} 17. Qf5+ {[%clk 0:02:13]}  Kb8 {[%clk 0:01:30]} 18. Qb1 {[%clk 0:01:15]}  Bd6 {[%clk 0:01:12]} 19. Ne4 {[%clk 0:01:12]}  Nxe4 {[%clk 0:01:06]} 20. Bxe4 {[%clk 0:01:06]}  g5 {[%clk 0:00:45]} 21. Bxe5 {[%clk 0:00:40]}  Bxe5 {[%clk 0:00:42]} 22. h5 {[%clk 0:00:41]}  h6 {[%clk 0:00:40]} 23. Kg2 {[%clk 0:00:33]}  Rd2 {[%clk 0:00:37]} 24. Nc4 {[%clk 0:00:18]}  Rxe2 {[%clk 0:00:28]} 25. Qd3 {[%clk 0:00:17]}  Bxc4 {[%clk 0:00:24]} 26. Rxc4 {[%clk 0:00:17]}  Rxb2 {[%clk 0:00:21]} 27. Rb1 {[%clk 0:00:16]}  Rd8 {[%clk 0:00:20]} 28. Qf1 {[%clk 0:00:16]}  Rdd2 {[%clk 0:00:16]} 29. Rxb2 {[%clk 0:00:14]}  Rxb2 {[%clk 0:00:16]} 30. Qd1 {[%clk 0:00:13]}  Bxg3 {[%clk 0:00:14]} 31. Qd4 {[%clk 0:00:07]}  Rxf2+ {[%clk 0:00:14]} 32. Kg1 {[%clk 0:00:06]}  Ra2 {[%clk 0:00:11]} 33. Qxf6 {[%clk 0:00:06]}  Bh2+ {[%clk 0:00:11]} 34. Kf1 {[%clk 0:00:06]}  Qf4+ {[%clk 0:00:10]} 35. Qxf4+ {[%clk 0:00:06]}  Bxf4 {[%clk 0:00:10]} 36. Rc5 {[%clk 0:00:06]}  Kc7 {[%clk 0:00:10]} 37. Rxa5 {[%clk 0:00:06]}  Bd2 {[%clk 0:00:06]} 38. Rf5 {[%clk 0:00:06]}  Rxa4 {[%clk 0:00:06]} 39. Rf7+ {[%clk 0:00:06]}  Kb6 {[%clk 0:00:06]} 40. Rf6 {[%clk 0:00:06]}  Rxe4 {[%clk 0:00:06]} 0-1


[Site "https://www.chess.com"]

[Event "Titled Tuesday Blitz April 11 Early 2023"]
[White "Zeman, Matyas"]
[Black "Horobetz, Graham"]
[WhiteFideId "364398"]
[BlackFideId "2047322"]
[WhiteElo "2254"]
[BlackElo "2605"]
[Result "0-1"]
[Round "03"]
[TimeControl "180+2"]
[Date "2023.04.11"]
[WhiteClock "0:00:02"]
[BlackClock "0:00:16"]

1. d4 {[%clk 0:03:00]}  Nf6 {[%clk 0:02:59]} 2. Nf3 {[%clk 0:03:00]}  d6 {[%clk 0:02:59]} 3. Nbd2 {[%clk 0:02:59]}  d5 {[%clk 0:02:57]} 4. e3 {[%clk 0:02:58]}  g6 {[%clk 0:02:57]} 5. b4 {[%clk 0:02:57]}  Bg7 {[%clk 0:02:58]} 6. c4 {[%clk 0:02:56]}  c6 {[%clk 0:02:55]} 7. a4 {[%clk 0:02:53]}  O-O {[%clk 0:02:55]} 8. Bb2 {[%clk 0:02:45]}  Bg4 {[%clk 0:02:52]} 9. Be2 {[%clk 0:02:44]}  Nbd7 {[%clk 0:02:44]} 10. O-O {[%clk 0:02:44]}  Re8 {[%clk 0:02:28]} 11. Qb3 {[%clk 0:02:38]}  Ne4 {[%clk 0:02:22]} 12. Rfd1 {[%clk 0:02:33]}  Nxd2 {[%clk 0:02:17]} 13. Rxd2 {[%clk 0:02:34]}  dxc4 {[%clk 0:02:06]} 14. Qxc4 {[%clk 0:02:31]}  e5 {[%clk 0:02:05]} 15. dxe5 {[%clk 0:02:27]}  Bxf3 {[%clk 0:02:05]} 16. Bxf3 {[%clk 0:02:24]}  Nxe5 {[%clk 0:02:04]} 17. Rxd8 {[%clk 0:02:19]}  Nxc4 {[%clk 0:02:03]} 18. Rxa8 {[%clk 0:02:14]}  Rxa8 {[%clk 0:02:01]} 19. Bxg7 {[%clk 0:02:13]}  Kxg7 {[%clk 0:02:02]} 20. Rd1 {[%clk 0:02:12]}  a5 {[%clk 0:01:55]} 21. b5 {[%clk 0:02:08]}  cxb5 {[%clk 0:01:55]} 22. axb5 {[%clk 0:02:09]}  a4 {[%clk 0:01:40]} 23. Bxb7 {[%clk 0:02:03]}  Ra5 {[%clk 0:01:40]} 24. Bd5 {[%clk 0:01:36]}  Nb2 {[%clk 0:01:29]} 25. Rb1 {[%clk 0:01:28]}  Rxb5 {[%clk 0:01:28]} 26. Bc6 {[%clk 0:01:28]}  Rb4 {[%clk 0:01:28]} 27. Kf1 {[%clk 0:01:22]}  a3 {[%clk 0:01:20]} 28. Ra1 {[%clk 0:01:22]}  Rc4 {[%clk 0:01:07]} 29. Bd5 {[%clk 0:01:18]}  Rc3 {[%clk 0:00:59]} 30. Ke2 {[%clk 0:01:15]}  f5 {[%clk 0:00:59]} 31. Be6 {[%clk 0:00:51]}  Kf6 {[%clk 0:00:58]} 32. Bg8 {[%clk 0:00:50]}  h6 {[%clk 0:00:58]} 33. Kd2 {[%clk 0:00:50]}  Rc8 {[%clk 0:00:57]} 34. Bb3 {[%clk 0:00:45]}  Ra8 {[%clk 0:00:46]} 35. Kc3 {[%clk 0:00:35]}  g5 {[%clk 0:00:42]} 36. f4 {[%clk 0:00:22]}  gxf4 {[%clk 0:00:40]} 37. exf4 {[%clk 0:00:23]}  Rc8+ {[%clk 0:00:40]} 38. Kb4 {[%clk 0:00:23]}  Nd3+ {[%clk 0:00:40]} 39. Kxa3 {[%clk 0:00:23]}  Ra8+ {[%clk 0:00:41]} 40. Ba4 {[%clk 0:00:22]}  Nxf4 {[%clk 0:00:18]} 41. g3 {[%clk 0:00:02]}  Nd3 {[%clk 0:00:19]} 42. Rd1 {[%clk 0:00:02]}  Rxa4+ {[%clk 0:00:16]} 0-1


[Site "https://www.chess.com"]

[Event "Titled Tuesday Blitz April 11 Early 2023"]
[White "Gabdrakhmanov, Azat"]
[Black "Kabilov, Amin"]
[WhiteFideId "34189197"]
[BlackFideId "14700859"]
[WhiteElo "2306"]
[BlackElo "2110"]
[Result "1-0"]
[Round "03"]
[TimeControl "180+2"]
[Date "2023.04.11"]
[WhiteClock "0:00:18"]
[BlackClock "0:00:08"]

1. e4 {[%clk 0:03:00]}  e5 {[%clk 0:02:55]} 2. Nf3 {[%clk 0:03:01]}  d6 {[%clk 0:02:55]} 3. d4 {[%clk 0:03:01]}  exd4 {[%clk 0:02:56]} 4. Nxd4 {[%clk 0:03:02]}  Nf6 {[%clk 0:02:56]} 5. Nc3 {[%clk 0:03:02]}  Be7 {[%clk 0:02:57]} 6. g3 {[%clk 0:03:00]}  d5 {[%clk 0:02:53]} 7. e5 {[%clk 0:03:00]}  Ng4 {[%clk 0:02:52]} 8. Nf3 {[%clk 0:02:49]}  Bc5 {[%clk 0:02:19]} 9. Qxd5 {[%clk 0:02:05]}  Bxf2+ {[%clk 0:01:19]} 10. Ke2 {[%clk 0:02:04]}  Qe7 {[%clk 0:00:49]} 11. h3 {[%clk 0:01:48]}  Nf6 {[%clk 0:00:49]} 12. Qd3 {[%clk 0:01:11]}  Bb6 {[%clk 0:00:48]} 13. Bg5 {[%clk 0:01:07]}  Nc6 {[%clk 0:00:13]} 14. Nd5 {[%clk 0:01:00]}  Nxe5 {[%clk 0:00:13]} 15. Nxe7 {[%clk 0:00:58]}  Nxd3 {[%clk 0:00:13]} 16. Nxc8 {[%clk 0:00:54]}  Nxb2 {[%clk 0:00:11]} 17. Nxb6 {[%clk 0:00:52]}  axb6 {[%clk 0:00:11]} 18. Bxf6 {[%clk 0:00:50]}  gxf6 {[%clk 0:00:12]} 19. Kf2 {[%clk 0:00:49]}  O-O {[%clk 0:00:10]} 20. Be2 {[%clk 0:00:45]}  Rfe8 {[%clk 0:00:10]} 21. Rhe1 {[%clk 0:00:38]}  Na4 {[%clk 0:00:10]} 22. Bb5 {[%clk 0:00:32]}  Rxe1 {[%clk 0:00:10]} 23. Rxe1 {[%clk 0:00:33]}  Nc3 {[%clk 0:00:10]} 24. Bc4 {[%clk 0:00:33]}  b5 {[%clk 0:00:09]} 25. Bd3 {[%clk 0:00:30]}  Rxa2 {[%clk 0:00:08]} 26. Re8+ {[%clk 0:00:30]}  Kg7 {[%clk 0:00:08]} 27. Nh4 {[%clk 0:00:30]}  f5 {[%clk 0:00:07]} 28. Nxf5+ {[%clk 0:00:28]}  Kf6 {[%clk 0:00:08]} 29. Ne3 {[%clk 0:00:25]}  c6 {[%clk 0:00:07]} 30. Ng4+ {[%clk 0:00:23]}  Kg7 {[%clk 0:00:06]} 31. h4 {[%clk 0:00:20]}  Nd5 {[%clk 0:00:06]} 32. h5 {[%clk 0:00:19]}  h6 {[%clk 0:00:07]} 33. Rb8 {[%clk 0:00:18]}  Nb4 {[%clk 0:00:07]} 34. Bf5 {[%clk 0:00:17]}  Nxc2 {[%clk 0:00:07]} 35. Bxc2 {[%clk 0:00:16]}  Rxc2+ {[%clk 0:00:07]} 36. Kf3 {[%clk 0:00:17]}  Rc3+ {[%clk 0:00:07]} 37. Kf4 {[%clk 0:00:17]}  Rc4+ {[%clk 0:00:07]} 38. Kf5 {[%clk 0:00:17]}  Rc5+ {[%clk 0:00:08]} 39. Ne5 {[%clk 0:00:17]}  f6 {[%clk 0:00:07]} 40. Rxb7+ {[%clk 0:00:17]}  Kf8 {[%clk 0:00:07]} 41. Kxf6 {[%clk 0:00:18]}  Ke8 {[%clk 0:00:08]} 42. Rb8# {[%clk 0:00:18]} 1-0


[Site "https://www.chess.com"]